[Event "Titled Tuesday Blitz December 27 Early 2022"]
[White "Magallanes, Rey Jomar"]
[Black "De Souza, Cristiano Gomes"]
[WhiteFideId "5205948"]
[BlackFideId "2151758"]
[WhiteElo "2052"]
[BlackElo "2018"]
[Result "1/2-1/2"]
[Round "06"]
[TimeControl "180+2"]
[Date "2022.12.27"]
[WhiteClock "0:00:51"]
[BlackClock "0:01:44"]

1. e4 {[%clk 0:03:00]}  c5 {[%clk 0:02:59]} 2. Nf3 {[%clk 0:03:01]}  d6 {[%clk 0:02:59]} 3. d4 {[%clk 0:03:01]}  cxd4 {[%clk 0:02:59]} 4. Nxd4 {[%clk 0:03:02]}  Nf6 {[%clk 0:03:00]} 5. Nc3 {[%clk 0:03:02]}  g6 {[%clk 0:02:59]} 6. Be3 {[%clk 0:03:01]}  Bg7 {[%clk 0:02:59]} 7. h3 {[%clk 0:02:59]}  O-O {[%clk 0:03:00]} 8. Bc4 {[%clk 0:02:59]}  Nc6 {[%clk 0:03:01]} 9. Bb3 {[%clk 0:02:59]}  Bd7 {[%clk 0:03:01]} 10. O-O {[%clk 0:02:59]}  a5 {[%clk 0:03:01]} 11. a4 {[%clk 0:02:57]}  Nb4 {[%clk 0:02:57]} 12. f4 {[%clk 0:02:55]}  Bc6 {[%clk 0:02:57]} 13. e5 {[%clk 0:02:56]}  dxe5 {[%clk 0:02:56]} 14. fxe5 {[%clk 0:02:56]}  Ne8 {[%clk 0:02:49]} 15. e6 {[%clk 0:02:46]}  f5 {[%clk 0:02:48]} 16. Nxc6 {[%clk 0:02:36]}  bxc6 {[%clk 0:02:47]} 17. Qd7 {[%clk 0:02:30]}  Nf6 {[%clk 0:02:44]} 18. Qxd8 {[%clk 0:02:23]}  Rfxd8 {[%clk 0:02:43]} 19. Rad1 {[%clk 0:02:23]}  Nfd5 {[%clk 0:02:33]} 20. Nxd5 {[%clk 0:02:20]}  Nxd5 {[%clk 0:02:33]} 21. Bxd5 {[%clk 0:02:19]}  Rxd5 {[%clk 0:02:33]} 22. Rxd5 {[%clk 0:02:19]}  cxd5 {[%clk 0:02:34]} 23. c3 {[%clk 0:02:19]}  Rb8 {[%clk 0:02:32]} 24. Rf2 {[%clk 0:02:18]}  Rd8 {[%clk 0:02:26]} 25. Bb6 {[%clk 0:02:14]}  Rd6 {[%clk 0:02:26]} 26. Bc5 {[%clk 0:02:11]}  Rxe6 {[%clk 0:02:26]} 27. Rd2 {[%clk 0:02:07]}  Re1+ {[%clk 0:02:24]} 28. Kf2 {[%clk 0:02:06]}  Re4 {[%clk 0:02:24]} 29. Rxd5 {[%clk 0:02:02]}  Rxa4 {[%clk 0:02:23]} 30. Bxe7 {[%clk 0:02:01]}  Ra2 {[%clk 0:02:23]} 31. Bc5 {[%clk 0:01:43]}  Rxb2+ {[%clk 0:02:20]} 32. Ke3 {[%clk 0:01:43]}  Bxc3 {[%clk 0:02:19]} 33. Rd8+ {[%clk 0:01:43]}  Kf7 {[%clk 0:02:19]} 34. Rd7+ {[%clk 0:01:42]}  Ke6 {[%clk 0:02:18]} 35. Rxh7 {[%clk 0:01:42]}  a4 {[%clk 0:02:17]} 36. Ra7 {[%clk 0:01:41]}  Rb3 {[%clk 0:02:13]} 37. Ke2 {[%clk 0:01:31]}  Rb2+ {[%clk 0:02:07]} 38. Kd3 {[%clk 0:01:31]}  Be5 {[%clk 0:02:04]} 39. Rxa4 {[%clk 0:01:28]}  Rxg2 {[%clk 0:02:04]} 40. Ra6+ {[%clk 0:01:28]}  Kf7 {[%clk 0:02:04]} 41. Ra7+ {[%clk 0:01:27]}  Kg8 {[%clk 0:02:03]} 42. Ra8+ {[%clk 0:01:26]}  Kh7 {[%clk 0:02:04]} 43. Ra7+ {[%clk 0:01:20]}  Kh6 {[%clk 0:02:03]} 44. Be3+ {[%clk 0:01:20]}  f4 {[%clk 0:02:00]} 45. Bd2 {[%clk 0:01:17]}  Rg3+ {[%clk 0:01:59]} 46. Ke4 {[%clk 0:01:16]}  Bd6 {[%clk 0:01:49]} 47. Ra6 {[%clk 0:01:14]}  Bc7 {[%clk 0:01:48]} 48. Rc6 {[%clk 0:01:13]}  Bb8 {[%clk 0:01:48]} 49. Rc8 {[%clk 0:01:12]}  Bd6 {[%clk 0:01:48]} 50. Rc6 {[%clk 0:01:12]}  Bb8 {[%clk 0:01:47]} 51. Rc8 {[%clk 0:01:11]}  Bd6 {[%clk 0:01:47]} 52. Rc6 {[%clk 0:00:51]}  Bb8 {[%clk 0:01:44]} 1/2-1/2


[Site "https://www.chess.com"]

[Event "Titled Tuesday Blitz December 27 Early 2022"]
[White "Mahdavi, Reza"]
[Black "Koutlas, Nikolaos"]
[WhiteFideId "12595926"]
[BlackFideId "25827138"]
[WhiteElo "2339"]
[BlackElo "2341"]
[Result "1-0"]
[Round "06"]
[TimeControl "180+2"]
[Date "2022.12.27"]
[WhiteClock "0:01:18"]
[BlackClock "0:00:12"]

1. e4 {[%clk 0:03:00]}  c5 {[%clk 0:02:57]} 2. Nf3 {[%clk 0:03:01]}  Nc6 {[%clk 0:02:57]} 3. Bb5 {[%clk 0:02:49]}  Qb6 {[%clk 0:02:45]} 4. Nc3 {[%clk 0:02:43]}  e6 {[%clk 0:02:44]} 5. Bxc6 {[%clk 0:02:41]}  Qxc6 {[%clk 0:02:44]} 6. d4 {[%clk 0:02:39]}  cxd4 {[%clk 0:02:42]} 7. Nxd4 {[%clk 0:02:40]}  Qc7 {[%clk 0:02:37]} 8. O-O {[%clk 0:02:38]}  a6 {[%clk 0:02:37]} 9. Bg5 {[%clk 0:02:38]}  Nf6 {[%clk 0:02:30]} 10. Re1 {[%clk 0:02:33]}  Bd6 {[%clk 0:02:14]} 11. g3 {[%clk 0:02:11]}  Bc5 {[%clk 0:02:01]} 12. e5 {[%clk 0:02:06]}  Ng8 {[%clk 0:01:45]} 13. Ne4 {[%clk 0:02:07]}  Ne7 {[%clk 0:00:50]} 14. Nb3 {[%clk 0:01:54]}  Ba7 {[%clk 0:00:39]} 15. Nd6+ {[%clk 0:01:53]}  Kf8 {[%clk 0:00:39]} 16. Bxe7+ {[%clk 0:01:27]}  Kxe7 {[%clk 0:00:37]} 17. Qh5 {[%clk 0:01:28]}  Qxc2 {[%clk 0:00:18]} 18. Qxf7+ {[%clk 0:01:23]}  Kd8 {[%clk 0:00:18]} 19. Rac1 {[%clk 0:01:22]}  Qxb2 {[%clk 0:00:16]} 20. Red1 {[%clk 0:01:21]}  Qxa2 {[%clk 0:00:13]} 21. Nxb7+ {[%clk 0:01:17]}  Bxb7 {[%clk 0:00:12]} 22. Qxd7# {[%clk 0:01:18]} 1-0


[Site "https://www.chess.com"]

[Event "Titled Tuesday Blitz December 27 Early 2022"]
[White "Makarian, Rudik"]
[Black "Goltsev, Dmitry"]
[WhiteFideId "44105681"]
[BlackFideId "24176710"]
[WhiteElo "2545"]
[BlackElo "2269"]
[Result "1-0"]
[Round "06"]
[TimeControl "180+2"]
[Date "2022.12.27"]
[WhiteClock "0:00:10"]
[BlackClock "0:00:06"]

1. d4 {[%clk 0:03:00]}  Nf6 {[%clk 0:02:59]} 2. Bg5 {[%clk 0:03:00]}  e6 {[%clk 0:02:58]} 3. Nf3 {[%clk 0:02:59]}  d5 {[%clk 0:02:58]} 4. e3 {[%clk 0:02:59]}  c5 {[%clk 0:02:58]} 5. c3 {[%clk 0:02:58]}  Nc6 {[%clk 0:02:59]} 6. Nbd2 {[%clk 0:02:57]}  Bd6 {[%clk 0:02:59]} 7. Bd3 {[%clk 0:02:45]}  e5 {[%clk 0:02:57]} 8. e4 {[%clk 0:02:29]}  cxd4 {[%clk 0:02:47]} 9. exd5 {[%clk 0:01:43]}  dxc3 {[%clk 0:02:31]} 10. bxc3 {[%clk 0:01:43]}  Ne7 {[%clk 0:02:31]} 11. c4 {[%clk 0:01:44]}  Ng6 {[%clk 0:02:27]} 12. O-O {[%clk 0:01:37]}  O-O {[%clk 0:02:27]} 13. Nh4 {[%clk 0:00:59]}  Nf4 {[%clk 0:02:13]} 14. Ne4 {[%clk 0:00:30]}  Be7 {[%clk 0:02:06]} 15. Bxf4 {[%clk 0:00:29]}  exf4 {[%clk 0:02:03]} 16. Nf3 {[%clk 0:00:28]}  Nxe4 {[%clk 0:01:59]} 17. Bxe4 {[%clk 0:00:29]}  Bc5 {[%clk 0:01:57]} 18. Qd2 {[%clk 0:00:28]}  Qf6 {[%clk 0:01:56]} 19. Rad1 {[%clk 0:00:28]}  Bg4 {[%clk 0:01:52]} 20. h3 {[%clk 0:00:28]}  Bh5 {[%clk 0:01:50]} 21. Rfe1 {[%clk 0:00:28]}  h6 {[%clk 0:01:48]} 22. d6 {[%clk 0:00:26]}  Rad8 {[%clk 0:01:47]} 23. d7 {[%clk 0:00:22]}  b6 {[%clk 0:01:47]} 24. Qd5 {[%clk 0:00:21]}  g5 {[%clk 0:01:45]} 25. Qf5 {[%clk 0:00:16]}  Qxf5 {[%clk 0:01:39]} 26. Bxf5 {[%clk 0:00:17]}  Kg7 {[%clk 0:01:26]} 27. Rd5 {[%clk 0:00:18]}  Bxf3 {[%clk 0:01:22]} 28. gxf3 {[%clk 0:00:18]}  Kf6 {[%clk 0:01:23]} 29. Kg2 {[%clk 0:00:18]}  Rb8 {[%clk 0:01:08]} 30. Bc2 {[%clk 0:00:18]}  Rbd8 {[%clk 0:01:05]} 31. Ba4 {[%clk 0:00:18]}  Kg7 {[%clk 0:00:59]} 32. Re8 {[%clk 0:00:15]}  Kf6 {[%clk 0:00:57]} 33. Bc6 {[%clk 0:00:14]}  Be7 {[%clk 0:00:50]} 34. Kf1 {[%clk 0:00:11]}  Bc5 {[%clk 0:00:42]} 35. Rde5 {[%clk 0:00:11]}  Bd6 {[%clk 0:00:30]} 36. Re4 {[%clk 0:00:11]}  Bc5 {[%clk 0:00:29]} 37. Ke2 {[%clk 0:00:11]}  Bd6 {[%clk 0:00:23]} 38. Kd3 {[%clk 0:00:11]}  Bc5 {[%clk 0:00:23]} 39. Kc2 {[%clk 0:00:10]}  Bd6 {[%clk 0:00:23]} 40. Kb3 {[%clk 0:00:10]}  Bc5 {[%clk 0:00:24]} 41. Ka4 {[%clk 0:00:11]}  a6 {[%clk 0:00:24]} 42. Kb3 {[%clk 0:00:11]}  Bd6 {[%clk 0:00:23]} 43. Kc3 {[%clk 0:00:09]}  Bc5 {[%clk 0:00:23]} 44. Kc2 {[%clk 0:00:07]}  Bd6 {[%clk 0:00:23]} 45. Re2 {[%clk 0:00:08]}  Bc5 {[%clk 0:00:22]} 46. Kd3 {[%clk 0:00:06]}  Bd6 {[%clk 0:00:16]} 47. Kd4 {[%clk 0:00:05]}  Bc5+ {[%clk 0:00:16]} 48. Kd5 {[%clk 0:00:06]}  Bb4 {[%clk 0:00:15]} 49. Kd4 {[%clk 0:00:02]}  Bc5+ {[%clk 0:00:15]} 50. Kd5 {[%clk 0:00:03]}  Bb4 {[%clk 0:00:16]} 51. a4 {[%clk 0:00:04]}  a5 {[%clk 0:00:14]} 52. Bb5 {[%clk 0:00:04]}  Bc5 {[%clk 0:00:08]} 53. Kc6 {[%clk 0:00:03]}  Bxf2 {[%clk 0:00:03]} 54. Kc7 {[%clk 0:00:02]}  Rdxe8 {[%clk 0:00:02]} 55. Rxe8 {[%clk 0:00:01]}  Rxe8 {[%clk 0:00:02]} 56. dxe8=Q {[%clk 0:00:02]}  Bd4 {[%clk 0:00:03]} 57. Kc8 {[%clk 0:00:03]}  Be5 {[%clk 0:00:04]} 58. Qd7 {[%clk 0:00:04]}  h5 {[%clk 0:00:04]} 59. Bc6 {[%clk 0:00:04]}  g4 {[%clk 0:00:04]} 60. hxg4 {[%clk 0:00:05]}  hxg4 {[%clk 0:00:05]} 61. Qxg4 {[%clk 0:00:04]}  Bd6 {[%clk 0:00:04]} 62. Qh3 {[%clk 0:00:05]}  Ke5 {[%clk 0:00:05]} 63. Bd5 {[%clk 0:00:06]}  Kd4 {[%clk 0:00:05]} 64. Qf5 {[%clk 0:00:06]}  Bc5 {[%clk 0:00:05]} 65. Qxf7 {[%clk 0:00:07]}  Kc3 {[%clk 0:00:06]} 66. Qf5 {[%clk 0:00:07]}  Kb4 {[%clk 0:00:07]} 67. Qd7 {[%clk 0:00:07]}  Be3 {[%clk 0:00:07]} 68. Qb5+ {[%clk 0:00:08]}  Kc3 {[%clk 0:00:07]} 69. Kb7 {[%clk 0:00:09]}  Kd3 {[%clk 0:00:05]} 70. Qxb6 {[%clk 0:00:09]}  Bxb6 {[%clk 0:00:06]} 71. Kxb6 {[%clk 0:00:10]} 1-0


[Site "https://www.chess.com"]

[Event "Titled Tuesday Blitz December 27 Early 2022"]
[White "Moral Garcia, Serafin"]
[Black "Samsonkin, Artiom"]
[WhiteFideId "2201925"]
[BlackFideId "13503111"]
[WhiteElo "2238"]
[BlackElo "2420"]
[Result "0-1"]
[Round "06"]
[TimeControl "180+2"]
[Date "2022.12.27"]
[WhiteClock "0:00:23"]
[BlackClock "0:00:19"]

1. e4 {[%clk 0:03:00]}  e6 {[%clk 0:02:59]} 2. d4 {[%clk 0:03:00]}  d5 {[%clk 0:03:00]} 3. Nd2 {[%clk 0:03:00]}  c5 {[%clk 0:02:59]} 4. exd5 {[%clk 0:02:59]}  Qxd5 {[%clk 0:03:00]} 5. Ngf3 {[%clk 0:02:59]}  Nf6 {[%clk 0:02:53]} 6. Bc4 {[%clk 0:02:57]}  Qd6 {[%clk 0:02:51]} 7. O-O {[%clk 0:02:57]}  Be7 {[%clk 0:02:50]} 8. Nb3 {[%clk 0:02:57]}  cxd4 {[%clk 0:02:49]} 9. Nbxd4 {[%clk 0:02:57]}  a6 {[%clk 0:02:49]} 10. c3 {[%clk 0:02:57]}  O-O {[%clk 0:02:48]} 11. Bb3 {[%clk 0:02:57]}  b5 {[%clk 0:02:48]} 12. Re1 {[%clk 0:02:54]}  Bb7 {[%clk 0:02:44]} 13. Bg5 {[%clk 0:02:53]}  Nbd7 {[%clk 0:02:43]} 14. Qe2 {[%clk 0:02:51]}  Ne4 {[%clk 0:02:34]} 15. Bxe7 {[%clk 0:02:50]}  Qxe7 {[%clk 0:02:35]} 16. Rad1 {[%clk 0:02:47]}  Ndf6 {[%clk 0:02:18]} 17. Ne5 {[%clk 0:02:25]}  Qc7 {[%clk 0:02:16]} 18. Ng4 {[%clk 0:02:23]}  Qf4 {[%clk 0:01:56]} 19. Nxf6+ {[%clk 0:02:20]}  Nxf6 {[%clk 0:01:57]} 20. Qe5 {[%clk 0:02:05]}  Qh4 {[%clk 0:01:44]} 21. h3 {[%clk 0:02:00]}  Rad8 {[%clk 0:01:39]} 22. Qc7 {[%clk 0:01:43]}  Rd7 {[%clk 0:01:39]} 23. Qb6 {[%clk 0:01:35]}  Rfd8 {[%clk 0:01:38]} 24. Nxe6 {[%clk 0:01:28]}  Rxd1 {[%clk 0:00:30]} 25. Rxd1 {[%clk 0:01:16]}  Rxd1+ {[%clk 0:00:18]} 26. Bxd1 {[%clk 0:01:15]}  Ne4 {[%clk 0:00:19]} 27. Qd8+ {[%clk 0:01:06]}  Qxd8 {[%clk 0:00:19]} 28. Nxd8 {[%clk 0:01:07]}  Bd5 {[%clk 0:00:20]} 29. Bb3 {[%clk 0:00:41]}  Bxb3 {[%clk 0:00:20]} 30. axb3 {[%clk 0:00:41]}  Nc5 {[%clk 0:00:21]} 31. b4 {[%clk 0:00:36]}  Na4 {[%clk 0:00:20]} 32. Nc6 {[%clk 0:00:34]}  Nxb2 {[%clk 0:00:19]} 33. Nb8 {[%clk 0:00:34]}  Nd1 {[%clk 0:00:18]} 34. Nxa6 {[%clk 0:00:35]}  Nxc3 {[%clk 0:00:19]} 35. Kf1 {[%clk 0:00:35]}  Kf8 {[%clk 0:00:18]} 36. Ke1 {[%clk 0:00:36]}  Ke7 {[%clk 0:00:19]} 37. Kd2 {[%clk 0:00:36]}  Nd5 {[%clk 0:00:19]} 38. Kd3 {[%clk 0:00:25]}  Kd6 {[%clk 0:00:18]} 39. Kd4 {[%clk 0:00:25]}  Nf4 {[%clk 0:00:18]} 40. g3 {[%clk 0:00:22]}  Nxh3 {[%clk 0:00:19]} 41. f4 {[%clk 0:00:22]}  h5 {[%clk 0:00:17]} 42. Nc5 {[%clk 0:00:22]}  h4 {[%clk 0:00:16]} 43. Ne4+ {[%clk 0:00:20]}  Kc6 {[%clk 0:00:17]} 44. gxh4 {[%clk 0:00:20]}  Nxf4 {[%clk 0:00:17]} 45. Ng5 {[%clk 0:00:20]}  Ne6+ {[%clk 0:00:14]} 46. Nxe6 {[%clk 0:00:19]}  fxe6 {[%clk 0:00:14]} 47. Ke5 {[%clk 0:00:20]}  Kd7 {[%clk 0:00:15]} 48. Kf4 {[%clk 0:00:20]}  Kd6 {[%clk 0:00:15]} 49. Kg5 {[%clk 0:00:21]}  e5 {[%clk 0:00:15]} 50. Kg6 {[%clk 0:00:21]}  e4 {[%clk 0:00:16]} 51. Kxg7 {[%clk 0:00:21]}  e3 {[%clk 0:00:17]} 52. h5 {[%clk 0:00:22]}  e2 {[%clk 0:00:18]} 53. h6 {[%clk 0:00:22]}  e1=Q {[%clk 0:00:19]} 54. h7 {[%clk 0:00:23]}  Qg3+ {[%clk 0:00:19]} 55. Kf7 {[%clk 0:00:23]}  Qe5 {[%clk 0:00:19]} 56. Kg8 {[%clk 0:00:23]}  Qe8+ {[%clk 0:00:19]} 0-1


[Site "https://www.chess.com"]

[Event "Titled Tuesday Blitz December 27 Early 2022"]
[White "Mortazavi, Ali"]
[Black "Bringas Gomez, Artai"]
[WhiteFideId "401323"]
[BlackFideId "24534064"]
[WhiteElo "2333"]
[BlackElo "2206"]
[Result "0-1"]
[Round "06"]
[TimeControl "180+2"]
[Date "2022.12.27"]
[WhiteClock "0:00:33"]
[BlackClock "0:00:39"]

1. e4 {[%clk 0:02:59]}  c6 {[%clk 0:03:00]} 2. Nc3 {[%clk 0:02:59]}  d5 {[%clk 0:03:00]} 3. d4 {[%clk 0:03:00]}  dxe4 {[%clk 0:03:00]} 4. f3 {[%clk 0:03:01]}  e3 {[%clk 0:02:55]} 5. Bxe3 {[%clk 0:03:02]}  Nf6 {[%clk 0:02:55]} 6. Bd3 {[%clk 0:02:59]}  Qa5 {[%clk 0:02:53]} 7. Ne2 {[%clk 0:02:57]}  Bf5 {[%clk 0:02:53]} 8. O-O {[%clk 0:02:49]}  e6 {[%clk 0:02:52]} 9. Ne4 {[%clk 0:02:42]}  Nd5 {[%clk 0:02:41]} 10. Bd2 {[%clk 0:02:41]}  Qc7 {[%clk 0:02:41]} 11. c4 {[%clk 0:02:33]}  Nb6 {[%clk 0:02:35]} 12. Bf4 {[%clk 0:02:15]}  Qd8 {[%clk 0:02:34]} 13. Qd2 {[%clk 0:01:56]}  Be7 {[%clk 0:02:33]} 14. c5 {[%clk 0:01:56]}  Nd5 {[%clk 0:02:28]} 15. Nd6+ {[%clk 0:01:57]}  Bxd6 {[%clk 0:02:20]} 16. Bxd6 {[%clk 0:01:57]}  Bxd3 {[%clk 0:02:21]} 17. Qxd3 {[%clk 0:01:57]}  f6 {[%clk 0:02:21]} 18. Ng3 {[%clk 0:01:43]}  Kf7 {[%clk 0:02:18]} 19. Rae1 {[%clk 0:01:43]}  Na6 {[%clk 0:02:17]} 20. Re2 {[%clk 0:01:33]}  Qd7 {[%clk 0:02:15]} 21. Rfe1 {[%clk 0:01:32]}  Rae8 {[%clk 0:02:15]} 22. a3 {[%clk 0:01:32]}  Nac7 {[%clk 0:02:13]} 23. Re4 {[%clk 0:01:19]}  Nb5 {[%clk 0:02:09]} 24. Rh4 {[%clk 0:01:06]}  Nxd6 {[%clk 0:02:03]} 25. cxd6 {[%clk 0:01:05]}  Qxd6 {[%clk 0:02:01]} 26. Rxh7 {[%clk 0:01:01]}  Rxh7 {[%clk 0:02:01]} 27. Qxh7 {[%clk 0:01:00]}  Qf4 {[%clk 0:01:29]} 28. Qh5+ {[%clk 0:01:00]}  Kf8 {[%clk 0:01:27]} 29. Qh3 {[%clk 0:00:50]}  Qxd4+ {[%clk 0:01:26]} 30. Kh1 {[%clk 0:00:50]}  Qd2 {[%clk 0:01:23]} 31. Rg1 {[%clk 0:00:47]}  Nf4 {[%clk 0:01:16]} 32. Qg4 {[%clk 0:00:40]}  Rd8 {[%clk 0:01:12]} 33. h4 {[%clk 0:00:39]}  Rd4 {[%clk 0:01:09]} 34. Ne4 {[%clk 0:00:37]}  Qe3 {[%clk 0:01:07]} 35. h5 {[%clk 0:00:33]}  Rd5 {[%clk 0:01:06]} 36. Ng3 {[%clk 0:00:31]}  Rg5 {[%clk 0:01:04]} 37. Qh4 {[%clk 0:00:31]}  Rxg3 {[%clk 0:00:47]} 38. Qxg3 {[%clk 0:00:31]}  Qxg1+ {[%clk 0:00:44]} 39. Kxg1 {[%clk 0:00:30]}  Ne2+ {[%clk 0:00:45]} 40. Kf2 {[%clk 0:00:31]}  Nxg3 {[%clk 0:00:46]} 41. Kxg3 {[%clk 0:00:32]}  Kg8 {[%clk 0:00:46]} 42. Kf4 {[%clk 0:00:32]}  Kh7 {[%clk 0:00:47]} 43. g4 {[%clk 0:00:33]}  Kh6 {[%clk 0:00:47]} 44. b4 {[%clk 0:00:33]}  b6 {[%clk 0:00:46]} 45. a4 {[%clk 0:00:34]}  c5 {[%clk 0:00:43]} 46. bxc5 {[%clk 0:00:33]}  bxc5 {[%clk 0:00:44]} 47. Ke4 {[%clk 0:00:34]}  Kg5 {[%clk 0:00:44]} 48. Ke3 {[%clk 0:00:32]}  f5 {[%clk 0:00:39]} 49. gxf5 {[%clk 0:00:29]}  exf5 {[%clk 0:00:40]} 50. a5 {[%clk 0:00:29]}  Kxh5 {[%clk 0:00:40]} 51. Kd3 {[%clk 0:00:28]}  g5 {[%clk 0:00:40]} 52. Kc4 {[%clk 0:00:29]}  g4 {[%clk 0:00:39]} 53. fxg4+ {[%clk 0:00:30]}  fxg4 {[%clk 0:00:38]} 54. Kxc5 {[%clk 0:00:31]}  g3 {[%clk 0:00:38]} 55. Kc6 {[%clk 0:00:32]}  g2 {[%clk 0:00:39]} 56. Kb7 {[%clk 0:00:33]}  g1=Q {[%clk 0:00:39]} 0-1


[Site "https://www.chess.com"]

[Event "Titled Tuesday Blitz December 27 Early 2022"]
[White "Nguyen Hong Nhung"]
[Black "Shubenkova, Veronika"]
[WhiteFideId "12412201"]
[BlackFideId "44124040"]
[WhiteElo "2003"]
[BlackElo "1960"]
[Result "0-1"]
[Round "06"]
[TimeControl "180+2"]
[Date "2022.12.27"]
[WhiteClock "0:00:09"]
[BlackClock "0:00:06"]

1. e4 {[%clk 0:03:00]}  c6 {[%clk 0:02:59]} 2. d4 {[%clk 0:03:00]}  d5 {[%clk 0:02:59]} 3. f3 {[%clk 0:02:59]}  dxe4 {[%clk 0:02:54]} 4. fxe4 {[%clk 0:03:00]}  e6 {[%clk 0:02:54]} 5. Nf3 {[%clk 0:03:00]}  Nf6 {[%clk 0:02:54]} 6. Nc3 {[%clk 0:02:58]}  Be7 {[%clk 0:02:53]} 7. Bd3 {[%clk 0:02:56]}  Qb6 {[%clk 0:02:52]} 8. O-O {[%clk 0:02:52]}  Nbd7 {[%clk 0:02:50]} 9. Kh1 {[%clk 0:02:50]}  c5 {[%clk 0:02:46]} 10. e5 {[%clk 0:02:30]}  Nd5 {[%clk 0:02:37]} 11. Nxd5 {[%clk 0:02:28]}  exd5 {[%clk 0:02:37]} 12. c3 {[%clk 0:02:14]}  Nf8 {[%clk 0:02:36]} 13. Bg5 {[%clk 0:02:05]}  Ng6 {[%clk 0:02:10]} 14. Bxe7 {[%clk 0:01:53]}  Nxe7 {[%clk 0:02:10]} 15. Ng5 {[%clk 0:01:53]}  Be6 {[%clk 0:02:10]} 16. Qa4+ {[%clk 0:01:27]}  Nc6 {[%clk 0:02:05]} 17. Nxe6 {[%clk 0:01:24]}  fxe6 {[%clk 0:02:05]} 18. Bb5 {[%clk 0:00:50]}  c4 {[%clk 0:01:53]} 19. Bxc6+ {[%clk 0:00:45]}  Qxc6 {[%clk 0:01:47]} 20. Qa5 {[%clk 0:00:41]}  Rf8 {[%clk 0:01:39]} 21. h3 {[%clk 0:00:39]}  g6 {[%clk 0:01:02]} 22. Qa3 {[%clk 0:00:30]}  Rf5 {[%clk 0:01:00]} 23. g4 {[%clk 0:00:25]}  Rxf1+ {[%clk 0:00:56]} 24. Rxf1 {[%clk 0:00:25]}  O-O-O {[%clk 0:00:54]} 25. Qxa7 {[%clk 0:00:24]}  Qd7 {[%clk 0:00:28]} 26. Qa8+ {[%clk 0:00:20]}  Kc7 {[%clk 0:00:28]} 27. Qa5+ {[%clk 0:00:21]}  Kb8 {[%clk 0:00:28]} 28. b3 {[%clk 0:00:21]}  h5 {[%clk 0:00:26]} 29. g5 {[%clk 0:00:19]}  Qe7 {[%clk 0:00:26]} 30. h4 {[%clk 0:00:17]}  Rc8 {[%clk 0:00:25]} 31. bxc4 {[%clk 0:00:17]}  dxc4 {[%clk 0:00:24]} 32. Rb1 {[%clk 0:00:17]}  Qd7 {[%clk 0:00:23]} 33. Qb5 {[%clk 0:00:16]}  Rc6 {[%clk 0:00:22]} 34. a4 {[%clk 0:00:15]}  Kc8 {[%clk 0:00:20]} 35. Qb2 {[%clk 0:00:13]}  Qf7 {[%clk 0:00:20]} 36. Qg2 {[%clk 0:00:14]}  Qf5 {[%clk 0:00:20]} 37. Rf1 {[%clk 0:00:14]}  Qd3 {[%clk 0:00:19]} 38. Qf3 {[%clk 0:00:14]}  Qc2 {[%clk 0:00:10]} 39. a5 {[%clk 0:00:12]}  Kb8 {[%clk 0:00:06]} 40. a6 {[%clk 0:00:11]}  Rxa6 {[%clk 0:00:05]} 41. Rf2 {[%clk 0:00:11]}  Ra1+ {[%clk 0:00:05]} 42. Kg2 {[%clk 0:00:11]}  Qc1 {[%clk 0:00:04]} 43. Qf8+ {[%clk 0:00:10]}  Ka7 {[%clk 0:00:04]} 44. Qc5+ {[%clk 0:00:11]}  Ka6 {[%clk 0:00:04]} 45. Qxc4+ {[%clk 0:00:10]}  Ka7 {[%clk 0:00:04]} 46. Rf1 {[%clk 0:00:10]}  Qd2+ {[%clk 0:00:03]} 47. Rf2 {[%clk 0:00:07]}  Qd1 {[%clk 0:00:04]} 48. Qc5+ {[%clk 0:00:07]}  Ka6 {[%clk 0:00:03]} 49. Qc4+ {[%clk 0:00:06]}  Ka7 {[%clk 0:00:04]} 50. Qf1 {[%clk 0:00:06]}  Qg4+ {[%clk 0:00:03]} 51. Kh2 {[%clk 0:00:06]}  Qxh4+ {[%clk 0:00:04]} 52. Kg1 {[%clk 0:00:06]}  Rxf1+ {[%clk 0:00:04]} 53. Kxf1 {[%clk 0:00:07]}  Qxg5 {[%clk 0:00:04]} 54. Rg2 {[%clk 0:00:07]}  Qc1+ {[%clk 0:00:04]} 55. Kf2 {[%clk 0:00:07]}  Qxc3 {[%clk 0:00:04]} 56. Rxg6 {[%clk 0:00:08]}  Qxd4+ {[%clk 0:00:05]} 57. Kf3 {[%clk 0:00:09]}  Qd3+ {[%clk 0:00:05]} 58. Kf4 {[%clk 0:00:09]}  Qxg6 {[%clk 0:00:06]} 0-1


[Site "https://www.chess.com"]

[Event "Titled Tuesday Blitz December 27 Early 2022"]
[White "Oro, Faustino"]
[Black "Srebrnic, Marko"]
[WhiteFideId "20000197"]
[BlackFideId "14603616"]
[WhiteElo "2269"]
[BlackElo "2366"]
[Result "0-1"]
[Round "06"]
[TimeControl "180+2"]
[Date "2022.12.27"]
[WhiteClock "0:00:01"]
[BlackClock "0:00:16"]

1. Nf3 {[%clk 0:03:00]}  Nf6 {[%clk 0:02:59]} 2. g3 {[%clk 0:02:59]}  g6 {[%clk 0:02:59]} 3. Bg2 {[%clk 0:02:59]}  Bg7 {[%clk 0:02:59]} 4. O-O {[%clk 0:03:00]}  O-O {[%clk 0:03:00]} 5. d4 {[%clk 0:02:59]}  d6 {[%clk 0:03:00]} 6. Nc3 {[%clk 0:02:56]}  Nc6 {[%clk 0:02:59]} 7. e4 {[%clk 0:02:53]}  e5 {[%clk 0:02:57]} 8. dxe5 {[%clk 0:02:50]}  Nxe5 {[%clk 0:02:56]} 9. Nd4 {[%clk 0:02:28]}  Re8 {[%clk 0:02:50]} 10. Re1 {[%clk 0:02:26]}  c6 {[%clk 0:02:46]} 11. h3 {[%clk 0:02:24]}  Qb6 {[%clk 0:02:44]} 12. Nb3 {[%clk 0:02:22]}  Nc4 {[%clk 0:02:42]} 13. Qd3 {[%clk 0:02:17]}  d5 {[%clk 0:02:41]} 14. Be3 {[%clk 0:01:47]}  Nxe3 {[%clk 0:02:38]} 15. Rxe3 {[%clk 0:01:45]}  Nxe4 {[%clk 0:02:31]} 16. Nxe4 {[%clk 0:01:41]}  dxe4 {[%clk 0:02:30]} 17. Rxe4 {[%clk 0:01:39]}  Bf5 {[%clk 0:02:30]} 18. Rxe8+ {[%clk 0:01:39]}  Rxe8 {[%clk 0:02:31]} 19. Qc4 {[%clk 0:01:24]}  Bxb2 {[%clk 0:02:24]} 20. Rd1 {[%clk 0:01:23]}  h5 {[%clk 0:02:07]} 21. Nc5 {[%clk 0:01:02]}  Bg7 {[%clk 0:01:57]} 22. g4 {[%clk 0:00:44]}  hxg4 {[%clk 0:01:56]} 23. hxg4 {[%clk 0:00:44]}  Bxg4 {[%clk 0:01:54]} 24. Na4 {[%clk 0:00:41]}  Bxd1 {[%clk 0:01:40]} 25. Nxb6 {[%clk 0:00:40]}  axb6 {[%clk 0:01:41]} 26. Qd3 {[%clk 0:00:35]}  Bg4 {[%clk 0:01:32]} 27. Bf1 {[%clk 0:00:23]}  Bf5 {[%clk 0:01:20]} 28. Qb3 {[%clk 0:00:23]}  b5 {[%clk 0:01:19]} 29. a4 {[%clk 0:00:23]}  bxa4 {[%clk 0:01:15]} 30. Qxa4 {[%clk 0:00:22]}  b5 {[%clk 0:01:06]} 31. Qa6 {[%clk 0:00:21]}  Be4 {[%clk 0:01:02]} 32. Qb7 {[%clk 0:00:19]}  Re5 {[%clk 0:00:50]} 33. Qb8+ {[%clk 0:00:14]}  Kh7 {[%clk 0:00:50]} 34. f4 {[%clk 0:00:09]}  Rh5 {[%clk 0:00:41]} 35. Kf2 {[%clk 0:00:08]}  Bd4+ {[%clk 0:00:40]} 36. Kg3 {[%clk 0:00:06]}  Rh1 {[%clk 0:00:38]} 37. Be2 {[%clk 0:00:03]}  Rg1+ {[%clk 0:00:38]} 38. Kh3 {[%clk 0:00:03]}  Rg2 {[%clk 0:00:18]} 39. Bg4 {[%clk 0:00:03]}  Rf2 {[%clk 0:00:15]} 40. Kh4 {[%clk 0:00:02]}  Bf6+ {[%clk 0:00:15]} 41. Kh3 {[%clk 0:00:03]}  Rxc2 {[%clk 0:00:15]} 42. Kg3 {[%clk 0:00:03]}  Bd5 {[%clk 0:00:15]} 43. Qc7 {[%clk 0:00:03]}  Rc3+ {[%clk 0:00:16]} 44. Kh2 {[%clk 0:00:02]}  Kg7 {[%clk 0:00:17]} 45. Bh3 {[%clk 0:00:02]}  Rc2+ {[%clk 0:00:17]} 46. Kg3 {[%clk 0:00:03]}  Rc3+ {[%clk 0:00:17]} 47. Kh2 {[%clk 0:00:03]}  Re3 {[%clk 0:00:18]} 48. Qd7 {[%clk 0:00:04]}  Re7 {[%clk 0:00:18]} 49. Qc8 {[%clk 0:00:03]}  Re2+ {[%clk 0:00:18]} 50. Kg3 {[%clk 0:00:04]}  Re3+ {[%clk 0:00:19]} 51. Kh2 {[%clk 0:00:04]}  Rf3 {[%clk 0:00:17]} 52. Qg4 {[%clk 0:00:03]}  Rf2+ {[%clk 0:00:16]} 53. Kg1 {[%clk 0:00:03]}  Bd4 {[%clk 0:00:17]} 54. Qh4 {[%clk 0:00:01]}  Rxf4+ {[%clk 0:00:16]} 0-1


[Site "https://www.chess.com"]